[Event "*** Titled Tuesday Blitz"]
[Site "Chess.com"]
[Date "2020.05.05"]
[Round "8"]
[White "woodhy"]
[Black "Zakaryan_David"]
[Result "1-0"]
[WhiteElo "2434"]
[BlackElo "2546"]
[TimeControl "180+1"]
[EndTime "11:35:51 PDT"]
[Termination "woodhy won by resignation"]

1. e4 {[%clk 0:03:00.9]} 1... c5 {[%clk 0:00:34.8]} 2. Nf3 {[%clk 0:02:59]} 2...
d6 {[%clk 0:00:34.2]} 3. d4 {[%clk 0:02:59.3]} 3... cxd4 {[%clk 0:00:34.6]} 4.
Nxd4 {[%clk 0:03:00.2]} 4... Nf6 {[%clk 0:00:34.5]} 5. f3 {[%clk 0:03:00.6]}
5... e5 {[%clk 0:00:33.8]} 6. Bb5+ {[%clk 0:02:59.8]} 6... Nbd7 {[%clk
0:00:32.1]} 7. Nf5 {[%clk 0:02:58.9]} 7... a6 {[%clk 0:00:30.6]} 8. Ba4 {[%clk
0:02:56.5]} 8... b5 {[%clk 0:00:28]} 9. Bb3 {[%clk 0:02:56.6]} 9... Nc5 {[%clk
0:00:28.1]} 10. Nc3 {[%clk 0:02:52.5]} 10... Nxb3 {[%clk 0:00:26.4]} 11. axb3
{[%clk 0:02:51.7]} 11... Bxf5 {[%clk 0:00:25.5]} 12. exf5 {[%clk 0:02:52.6]}
12... d5 {[%clk 0:00:25.6]} 13. O-O {[%clk 0:02:50.1]} 13... Bc5+ {[%clk
0:00:23]} 14. Kh1 {[%clk 0:02:50.2]} 14... O-O {[%clk 0:00:22.3]} 15. Bg5 {[%clk
0:02:50.1]} 15... d4 {[%clk 0:00:22.3]} 16. Ne4 {[%clk 0:02:48.6]} 16... Be7
{[%clk 0:00:22]} 17. Bxf6 {[%clk 0:02:48.2]} 17... Bxf6 {[%clk 0:00:21.9]} 18.
Qd3 {[%clk 0:02:40.8]} 18... Rc8 {[%clk 0:00:20.1]} 19. Rxa6 {[%clk 0:02:33.4]}
19... Qc7 {[%clk 0:00:19.9]} 20. Rf2 {[%clk 0:02:27]} 20... Be7 {[%clk
0:00:18.6]} 21. Qxb5 {[%clk 0:02:22.5]} 21... Rfd8 {[%clk 0:00:18.8]} 22. h3
{[%clk 0:02:18.8]} 22... Bf8 {[%clk 0:00:17.1]} 23. Qd3 {[%clk 0:02:16.5]} 23...
Qb7 {[%clk 0:00:17]} 24. Ra4 {[%clk 0:02:14.5]} 24... Ra8 {[%clk 0:00:16.5]} 25.
Rxa8 {[%clk 0:01:57.3]} 25... Qxa8 {[%clk 0:00:17.4]} 26. f6 {[%clk 0:01:55.8]}
26... g6 {[%clk 0:00:16.7]} 27. Rf1 {[%clk 0:01:54.9]} 27... Qa2 {[%clk
0:00:16.1]} 28. Qc4 {[%clk 0:01:54.5]} 28... Qxb2 {[%clk 0:00:16.1]} 29. Ng5
{[%clk 0:01:54.2]} 29... Rd7 {[%clk 0:00:14.5]} 30. Qc8 {[%clk 0:01:53.5]} 30...
Ra7 {[%clk 0:00:14.3]} 31. Nxh7 {[%clk 0:01:51.9]} 31... Qa3 {[%clk 0:00:10.2]}
32. Nxf8 {[%clk 0:01:44.1]} 32... Qxf8 {[%clk 0:00:11.1]} 33. Qxf8+ {[%clk
0:01:43.5]} 33... Kxf8 {[%clk 0:00:12]} 34. Re1 {[%clk 0:01:44.4]} 34... Ra5
{[%clk 0:00:10.6]} 35. Re4 {[%clk 0:01:44.2]} 35... Rd5 {[%clk 0:00:09.7]} 36.
f4 {[%clk 0:01:43.4]} 36... exf4 {[%clk 0:00:09.3]} 37. Rxf4 {[%clk 0:01:44.3]}
37... Ke8 {[%clk 0:00:09.6]} 38. Kg1 {[%clk 0:01:41.7]} 38... Kd7 {[%clk
0:00:09.4]} 39. Kf2 {[%clk 0:01:41.9]} 39... Kc6 {[%clk 0:00:09.2]} 40. Ke2
{[%clk 0:01:41.7]} 40... Kc5 {[%clk 0:00:07.6]} 41. Kd3 {[%clk 0:01:39.4]} 41...
Rd6 {[%clk 0:00:07.3]} 42. g4 {[%clk 0:01:38.7]} 42... Rd5 {[%clk 0:00:07.1]}
43. b4+ {[%clk 0:01:37.6]} 43... Kb5 {[%clk 0:00:06]} 44. Rxd4 {[%clk
0:01:37.9]} 44... Re5 {[%clk 0:00:06.1]} 45. Kc3 {[%clk 0:01:35.8]} 45... Re3+
{[%clk 0:00:05.7]} 46. Rd3 {[%clk 0:01:36.2]} 46... Re4 {[%clk 0:00:05.6]} 47.
Rd5+ {[%clk 0:01:36.1]} 47... Kc6 {[%clk 0:00:05.6]} 48. Rc5+ {[%clk 0:01:35.1]}
48... Kb6 {[%clk 0:00:05.8]} 49. Kb3 {[%clk 0:01:35.7]} 49... Re3+ {[%clk
0:00:05.7]} 50. Rc3 {[%clk 0:01:35.9]} 50... Re4 {[%clk 0:00:05.3]} 51. Rd3
{[%clk 0:01:34.3]} 51... Rf4 {[%clk 0:00:05.2]} 52. c4 {[%clk 0:01:31.7]} 52...
Rxf6 {[%clk 0:00:05.1]} 53. Rd6+ {[%clk 0:01:22.1]} 53... Rxd6 {[%clk
0:00:04.1]} 54. c5+ {[%clk 0:01:22.3]} 54... Kc6 {[%clk 0:00:04.2]} 55. cxd6
{[%clk 0:01:22.2]} 55... Kxd6 {[%clk 0:00:04.4]} 56. Kc4 {[%clk 0:01:22.5]}
56... Kc6 {[%clk 0:00:04.1]} 57. h4 {[%clk 0:01:20.8]} 57... f5 {[%clk
0:00:01.5]} 58. gxf5 {[%clk 0:01:20.3]} 58... gxf5 {[%clk 0:00:02.4]} 59. h5
{[%clk 0:01:20.7]} 59... f4 {[%clk 0:00:02.7]} 60. h6 {[%clk 0:01:19.3]} 60...
f3 {[%clk 0:00:02.8]} 61. Kd3 {[%clk 0:01:19.6]} 61... Kd5 {[%clk 0:00:02.9]}
62. h7 {[%clk 0:01:18.2]} 62... f2 {[%clk 0:00:03.8]} 63. Ke2 {[%clk 0:01:18]}
63... Ke4 {[%clk 0:00:04.7]} 64. Kxf2 {[%clk 0:01:17.2]} 64... Kd4 {[%clk
0:00:05.6]} 65. h8=Q+ {[%clk 0:01:17.4]} 65... Kc4 {[%clk 0:00:06.5]} 66. Ke3
{[%clk 0:01:17.2]} 1-0

[Event "*** Titled Tuesday Blitz"]
[Site "Chess.com"]
[Date "2020.05.05"]
[Round "8"]
[White "Quaternitychess"]
[Black "AnishGiri"]
[Result "0-1"]
[WhiteElo "2522"]
[BlackElo "3043"]
[TimeControl "180+1"]
[EndTime "11:35:53 PDT"]
[Termination "AnishGiri won by checkmate"]

1. e4 {[%clk 0:03:00.9]} 1... c5 {[%clk 0:02:59.8]} 2. Nc3 {[%clk 0:02:58.5]}
2... Nc6 {[%clk 0:02:58.5]} 3. f4 {[%clk 0:02:57.9]} 3... g6 {[%clk 0:02:58.3]}
4. Nf3 {[%clk 0:02:58.5]} 4... Bg7 {[%clk 0:02:58.6]} 5. a3 {[%clk 0:02:59.1]}
5... d6 {[%clk 0:02:53.2]} 6. Bc4 {[%clk 0:02:58.1]} 6... e6 {[%clk 0:02:52.8]}
7. d3 {[%clk 0:02:57.8]} 7... Nge7 {[%clk 0:02:52.8]} 8. O-O {[%clk 0:02:58.5]}
8... O-O {[%clk 0:02:52.8]} 9. Qe1 {[%clk 0:02:57]} 9... a6 {[%clk 0:02:28.8]}
10. Ba2 {[%clk 0:02:55.3]} 10... b5 {[%clk 0:02:28.8]} 11. f5 {[%clk 0:02:48]}
11... gxf5 {[%clk 0:02:09.5]} 12. Qh4 {[%clk 0:02:36.2]} 12... Ng6 {[%clk
0:02:08]} 13. Qh5 {[%clk 0:02:34.7]} 13... f4 {[%clk 0:02:02.6]} 14. Ne2 {[%clk
0:02:26.1]} 14... Nce5 {[%clk 0:02:01]} 15. Nxf4 {[%clk 0:02:18.3]} 15... Nxf3+
{[%clk 0:02:01.2]} 16. Rxf3 {[%clk 0:02:17.1]} 16... Qh4 {[%clk 0:01:58.6]} 17.
Qxh4 {[%clk 0:01:51.2]} 17... Nxh4 {[%clk 0:01:59.5]} 18. Rh3 {[%clk 0:01:51.5]}
18... Ng6 {[%clk 0:01:55.9]} 19. Nh5 {[%clk 0:01:52.1]} 19... Bd4+ {[%clk
0:01:53]} 20. Kh1 {[%clk 0:01:51]} 20... f5 {[%clk 0:01:42.2]} 21. c3 {[%clk
0:01:42.2]} 21... Bh8 {[%clk 0:01:37.3]} 22. Bh6 {[%clk 0:01:38.6]} 22... Rf7
{[%clk 0:01:36.7]} 23. exf5 {[%clk 0:01:00.2]} 23... Rxf5 {[%clk 0:01:36.2]} 24.
Ng3 {[%clk 0:01:00.9]} 24... Rf2 {[%clk 0:01:18.6]} 25. Rb1 {[%clk 0:00:42.6]}
25... d5 {[%clk 0:01:15.7]} 26. Kg1 {[%clk 0:00:42]} 26... Rf7 {[%clk
0:01:12.7]} 27. Re1 {[%clk 0:00:40.5]} 27... Bd7 {[%clk 0:01:10.4]} 28. Nh5
{[%clk 0:00:27.8]} 28... a5 {[%clk 0:00:58.7]} 29. Rhe3 {[%clk 0:00:27.1]} 29...
b4 {[%clk 0:00:55.3]} 30. Rxe6 {[%clk 0:00:26.8]} 30... Bxe6 {[%clk 0:00:54.9]}
31. Rxe6 {[%clk 0:00:27.1]} 31... bxc3 {[%clk 0:00:47.9]} 32. bxc3 {[%clk
0:00:20.7]} 32... Rd8 {[%clk 0:00:37.5]} 33. g3 {[%clk 0:00:10.5]} 33... Bxc3
{[%clk 0:00:37.1]} 34. Kg2 {[%clk 0:00:10.5]} 34... Bd4 {[%clk 0:00:33]} 35. h4
{[%clk 0:00:10.3]} 35... Rf2+ {[%clk 0:00:32.3]} 36. Kh3 {[%clk 0:00:09.5]}
36... Rxa2 {[%clk 0:00:32.9]} 37. Ra6 {[%clk 0:00:04.3]} 37... c4 {[%clk
0:00:31.5]} 38. Ra7 {[%clk 0:00:04.7]} 38... Bxa7 {[%clk 0:00:31]} 39. dxc4
{[%clk 0:00:05.5]} 39... dxc4 {[%clk 0:00:31]} 40. Nf6+ {[%clk 0:00:05.7]} 40...
Kf7 {[%clk 0:00:30]} 41. Nxh7 {[%clk 0:00:06.6]} 41... c3 {[%clk 0:00:29.3]} 42.
Ng5+ {[%clk 0:00:07.5]} 42... Kg8 {[%clk 0:00:29.3]} 43. Ne4 {[%clk 0:00:08.3]}
43... c2 {[%clk 0:00:28.2]} 44. Nf6+ {[%clk 0:00:09.2]} 44... Kf7 {[%clk
0:00:27.9]} 45. Ng4 {[%clk 0:00:10.1]} 45... Rd3 {[%clk 0:00:26.7]} 46. Bg5
{[%clk 0:00:11]} 46... Raxa3 {[%clk 0:00:24]} 47. Nh6+ {[%clk 0:00:11.9]} 47...
Ke6 {[%clk 0:00:23.4]} 48. Kg4 {[%clk 0:00:12.8]} 48... Rxg3+ {[%clk 0:00:23]}
49. Kh5 {[%clk 0:00:13.7]} 49... Rxg5+ {[%clk 0:00:23.1]} 50. hxg5 {[%clk
0:00:14.6]} 50... Nf4+ {[%clk 0:00:23.1]} 51. Kg4 {[%clk 0:00:14.4]} 51... c1=Q
{[%clk 0:00:23.6]} 52. Nf5 {[%clk 0:00:15.3]} 52... Qd1+ {[%clk 0:00:21.4]} 53.
Kxf4 {[%clk 0:00:16.2]} 53... Qf3# {[%clk 0:00:21.4]} 0-1

[Event "*** Titled Tuesday Blitz"]
[Site "Chess.com"]
[Date "2020.05.05"]
[Round "8"]
[White "Margarita2907"]
[Black "HanSchut"]
[Result "0-1"]
[WhiteElo "1986"]
[BlackElo "2226"]
[TimeControl "180+1"]
[EndTime "11:35:53 PDT"]
[Termination "HanSchut won on time"]

1. d4 {[%clk 0:02:57.8]} 1... Nf6 {[%clk 0:02:58.3]} 2. Nf3 {[%clk 0:02:58.2]}
2... d5 {[%clk 0:02:54.9]} 3. e3 {[%clk 0:02:56.2]} 3... g6 {[%clk 0:02:51.6]}
4. Bd3 {[%clk 0:02:55.2]} 4... Bg7 {[%clk 0:02:51.7]} 5. O-O {[%clk 0:02:51.1]}
5... O-O {[%clk 0:02:51.6]} 6. b3 {[%clk 0:02:49.5]} 6... b6 {[%clk 0:02:51.9]}
7. Bb2 {[%clk 0:02:49.4]} 7... Bb7 {[%clk 0:02:52.4]} 8. Nbd2 {[%clk 0:02:49.5]}
8... Ne4 {[%clk 0:02:52.7]} 9. Qe2 {[%clk 0:02:48.6]} 9... Nd7 {[%clk
0:02:51.4]} 10. c4 {[%clk 0:02:35.3]} 10... e6 {[%clk 0:02:43.2]} 11. Ne5 {[%clk
0:02:30.5]} 11... Nxe5 {[%clk 0:02:31.7]} 12. dxe5 {[%clk 0:02:29.3]} 12... Nxd2
{[%clk 0:02:27.4]} 13. Qxd2 {[%clk 0:02:29.1]} 13... dxc4 {[%clk 0:02:20.6]} 14.
bxc4 {[%clk 0:02:27.1]} 14... Qd7 {[%clk 0:02:16.5]} 15. Qe2 {[%clk 0:02:23.4]}
15... Rfd8 {[%clk 0:02:10.9]} 16. Rad1 {[%clk 0:02:21.6]} 16... Qc6 {[%clk
0:02:10.6]} 17. f3 {[%clk 0:02:17.2]} 17... Qc5 {[%clk 0:02:04.2]} 18. Bd4
{[%clk 0:02:13.4]} 18... Rxd4 {[%clk 0:01:58.9]} 19. exd4 {[%clk 0:02:11.6]}
19... Qxd4+ {[%clk 0:01:59.5]} 20. Kh1 {[%clk 0:02:05.1]} 20... Qxe5 {[%clk
0:01:59.3]} 21. Qxe5 {[%clk 0:01:50.4]} 21... Bxe5 {[%clk 0:02:00.2]} 22. Be4
{[%clk 0:01:43.1]} 22... Bxe4 {[%clk 0:01:53.8]} 23. fxe4 {[%clk 0:01:40.7]}
23... Bd6 {[%clk 0:01:45.5]} 24. Rfe1 {[%clk 0:01:29.8]} 24... e5 {[%clk
0:01:41.6]} 25. Rf1 {[%clk 0:01:16.6]} 25... Kg7 {[%clk 0:01:41.4]} 26. Rf3
{[%clk 0:01:11.8]} 26... Re8 {[%clk 0:01:10]} 27. Rdf1 {[%clk 0:01:04.5]} 27...
Re7 {[%clk 0:01:10.1]} 28. g4 {[%clk 0:01:00.8]} 28... h6 {[%clk 0:01:08.4]} 29.
a4 {[%clk 0:00:51.9]} 29... Bc5 {[%clk 0:01:08.1]} 30. Rd3 {[%clk 0:00:45.3]}
30... Bd4 {[%clk 0:01:07.9]} 31. Rdf3 {[%clk 0:00:38.3]} 31... Rd7 {[%clk
0:00:55.4]} 32. Kg2 {[%clk 0:00:35.2]} 32... Bc5 {[%clk 0:00:54.9]} 33. Kg3
{[%clk 0:00:31.7]} 33... Bf8 {[%clk 0:00:46.7]} 34. Kf2 {[%clk 0:00:19.7]} 34...
Kg8 {[%clk 0:00:45.1]} 35. Ke2 {[%clk 0:00:02.9]} 35... Bc5 {[%clk 0:00:40]} 36.
h3 {[%clk 0:00:01.4]} 36... Bd4 {[%clk 0:00:34.2]} 37. Rd1 {[%clk 0:00:01.6]}
37... Kg7 {[%clk 0:00:30.8]} 38. Rfd3 {[%clk 0:00:02.2]} 38... f6 {[%clk
0:00:28.9]} 39. Rf3 {[%clk 0:00:01.7]} 39... Rd6 {[%clk 0:00:28.3]} 40. Rfd3
{[%clk 0:00:01.9]} 40... Rc6 {[%clk 0:00:28.5]} 0-1

[Event "*** Titled Tuesday Blitz"]
[Site "Chess.com"]
[Date "2020.05.05"]
[Round "8"]
[White "gmelviro"]
[Black "Jbd735"]
[Result "0-1"]
[WhiteElo "2269"]
[BlackElo "2434"]
[TimeControl "180+1"]
[EndTime "11:35:54 PDT"]
[Termination "Jbd735 won by checkmate"]

1. c4 {[%clk 0:03:00.9]} 1... c6 {[%clk 0:02:59.9]} 2. Nf3 {[%clk 0:02:58.3]}
2... d5 {[%clk 0:03:00.1]} 3. e3 {[%clk 0:02:58.7]} 3... Nf6 {[%clk 0:02:59.8]}
4. Nc3 {[%clk 0:02:58.3]} 4... e6 {[%clk 0:02:57.2]} 5. d4 {[%clk 0:02:54.2]}
5... Nbd7 {[%clk 0:02:56.4]} 6. Bd3 {[%clk 0:02:53.5]} 6... dxc4 {[%clk
0:02:56.7]} 7. Bxc4 {[%clk 0:02:53.1]} 7... b5 {[%clk 0:02:57.6]} 8. Bd3 {[%clk
0:02:53.3]} 8... a6 {[%clk 0:02:57.7]} 9. O-O {[%clk 0:02:52.8]} 9... c5 {[%clk
0:02:56.7]} 10. Qe2 {[%clk 0:02:46.2]} 10... Bd6 {[%clk 0:02:45.8]} 11. Rd1
{[%clk 0:02:38.8]} 11... Qc7 {[%clk 0:02:42.9]} 12. e4 {[%clk 0:02:35.6]} 12...
cxd4 {[%clk 0:02:06]} 13. Nxd4 {[%clk 0:02:32.3]} 13... Bxh2+ {[%clk 0:02:05.9]}
14. Kh1 {[%clk 0:02:32.1]} 14... Be5 {[%clk 0:02:05.1]} 15. Nf3 {[%clk
0:02:20.2]} 15... O-O {[%clk 0:01:59.3]} 16. Bg5 {[%clk 0:02:17.4]} 16... Bxc3
{[%clk 0:01:20.1]} 17. bxc3 {[%clk 0:02:16.9]} 17... Bb7 {[%clk 0:01:13.4]} 18.
Rac1 {[%clk 0:01:51.4]} 18... Ng4 {[%clk 0:01:01.9]} 19. c4 {[%clk 0:01:24.5]}
19... b4 {[%clk 0:00:59.3]} 20. Be7 {[%clk 0:01:17.9]} 20... Rfe8 {[%clk
0:00:56.9]} 21. Bxb4 {[%clk 0:01:17.7]} 21... h5 {[%clk 0:00:42.4]} 22. Bb1
{[%clk 0:00:48.9]} 22... Nc5 {[%clk 0:00:32.7]} 23. Re1 {[%clk 0:00:29.9]} 23...
Nxe4 {[%clk 0:00:27.3]} 24. Bxe4 {[%clk 0:00:25.7]} 24... Bxe4 {[%clk
0:00:28.2]} 25. Kg1 {[%clk 0:00:17.1]} 25... Bxf3 {[%clk 0:00:20.7]} 26. Qxf3
{[%clk 0:00:17.4]} 26... Qh2+ {[%clk 0:00:19.8]} 27. Kf1 {[%clk 0:00:18]} 27...
Rab8 {[%clk 0:00:16.7]} 28. a3 {[%clk 0:00:17.7]} 28... Red8 {[%clk 0:00:15.8]}
29. Rcd1 {[%clk 0:00:17.3]} 29... a5 {[%clk 0:00:13]} 30. Rxd8+ {[%clk
0:00:16.2]} 30... Rxd8 {[%clk 0:00:12.6]} 31. Bxa5 {[%clk 0:00:16.9]} 31... Rc8
{[%clk 0:00:08.4]} 32. c5 {[%clk 0:00:16]} 32... Rxc5 {[%clk 0:00:06.5]} 33.
Qa8+ {[%clk 0:00:15.9]} 33... Kh7 {[%clk 0:00:06]} 34. Bb4 {[%clk 0:00:16.3]}
34... Rf5 {[%clk 0:00:03.3]} 35. Qe4 {[%clk 0:00:14.8]} 35... g6 {[%clk
0:00:02.5]} 36. Bc5 {[%clk 0:00:15]} 36... Qh1+ {[%clk 0:00:02.1]} 37. Ke2
{[%clk 0:00:14.7]} 37... Qh4 {[%clk 0:00:03]} 38. g3 {[%clk 0:00:14.3]} 38...
Qh2 {[%clk 0:00:03.1]} 39. Be3 {[%clk 0:00:13.4]} 39... Re5 {[%clk 0:00:03.3]}
40. Qxe5 {[%clk 0:00:13.3]} 40... Nxe5 {[%clk 0:00:03.2]} 41. Ra1 {[%clk
0:00:12.9]} 41... Qg2 {[%clk 0:00:03.6]} 42. a4 {[%clk 0:00:13.3]} 42... Qf3+
{[%clk 0:00:04.5]} 43. Kf1 {[%clk 0:00:13.2]} 43... Nc4 {[%clk 0:00:05.4]} 44.
Ke1 {[%clk 0:00:10.5]} 44... Nxe3 {[%clk 0:00:05.1]} 45. Ra3 {[%clk 0:00:10.8]}
45... Qd1# {[%clk 0:00:04.5]} 0-1

[Event "*** Titled Tuesday Blitz"]
[Site "Chess.com"]
[Date "2020.05.05"]
[Round "8"]
[White "penguingm1"]
[Black "Oleksandr_Bortnyk"]
[Result "1-0"]
[WhiteElo "2845"]
[BlackElo "2986"]
[TimeControl "180+1"]
[EndTime "11:35:55 PDT"]
[Termination "penguingm1 won on time"]

1. d4 {[%clk 0:03:00.9]} 1... d6 {[%clk 0:03:00.2]} 2. c4 {[%clk 0:02:59.4]}
2... e5 {[%clk 0:03:00.3]} 3. Nf3 {[%clk 0:02:59.8]} 3... e4 {[%clk 0:03:00.7]}
4. Ng5 {[%clk 0:02:59.6]} 4... f5 {[%clk 0:03:01]} 5. Nc3 {[%clk 0:02:59]} 5...
Be7 {[%clk 0:03:01.2]} 6. Nh3 {[%clk 0:02:59.2]} 6... Nf6 {[%clk 0:03:01.2]} 7.
g3 {[%clk 0:02:59.6]} 7... c6 {[%clk 0:03:01.6]} 8. d5 {[%clk 0:03:00.2]} 8...
Nbd7 {[%clk 0:03:01.4]} 9. Bg2 {[%clk 0:02:59.9]} 9... Ne5 {[%clk 0:03:01.7]}
10. b3 {[%clk 0:02:59.9]} 10... cxd5 {[%clk 0:02:48]} 11. Nxd5 {[%clk
0:02:57.4]} 11... Nxd5 {[%clk 0:02:37.6]} 12. Qxd5 {[%clk 0:02:56.8]} 12... Qb6
{[%clk 0:01:59]} 13. Bb2 {[%clk 0:01:52.8]} 13... Qb4+ {[%clk 0:01:29.6]} 14.
Kf1 {[%clk 0:01:49.5]} 14... Bd7 {[%clk 0:01:03.7]} 15. Nf4 {[%clk 0:01:30.9]}
15... Bc6 {[%clk 0:01:01.7]} 16. Qe6 {[%clk 0:01:31]} 16... Bd7 {[%clk
0:01:01.3]} 17. Qxe7+ {[%clk 0:01:31.1]} 17... Kxe7 {[%clk 0:00:49.5]} 18. Nd5+
{[%clk 0:01:32]} 18... Ke6 {[%clk 0:00:45.8]} 19. Nxb4 {[%clk 0:01:31.5]} 19...
Bc6 {[%clk 0:00:45.8]} 20. f4 {[%clk 0:01:09.3]} 20... Ng4 {[%clk 0:00:43]} 21.
Bxg7 {[%clk 0:01:08.3]} 21... Rhg8 {[%clk 0:00:43.2]} 22. Bd4 {[%clk 0:01:08.8]}
22... a5 {[%clk 0:00:43.7]} 23. Nc2 {[%clk 0:01:07.7]} 23... a4 {[%clk
0:00:42.9]} 24. h3 {[%clk 0:01:08.1]} 24... Nf6 {[%clk 0:00:40.2]} 25. Kf2
{[%clk 0:01:04.5]} 25... e3+ {[%clk 0:00:38.5]} 26. Bxe3 {[%clk 0:00:53.6]}
26... Bxg2 {[%clk 0:00:35]} 27. Kxg2 {[%clk 0:00:53.2]} 27... Nh5 {[%clk
0:00:35.9]} 28. g4 {[%clk 0:00:49.5]} 28... fxg4 {[%clk 0:00:27]} 29. hxg4
{[%clk 0:00:50.4]} 29... Rxg4+ {[%clk 0:00:21.5]} 30. Kf3 {[%clk 0:00:50.4]}
30... Nf6 {[%clk 0:00:12.8]} 31. Nd4+ {[%clk 0:00:50.2]} 31... Kf7 {[%clk
0:00:12.9]} 32. Rxh7+ {[%clk 0:00:50.7]} 32... Nxh7 {[%clk 0:00:12.6]} 33. Kxg4
{[%clk 0:00:50.8]} 33... axb3 {[%clk 0:00:13.1]} 34. Nxb3 {[%clk 0:00:50.7]}
34... Nf6+ {[%clk 0:00:13.5]} 35. Kf3 {[%clk 0:00:51.1]} 35... Rh8 {[%clk
0:00:14.4]} 36. Rg1 {[%clk 0:00:50.1]} 36... Rh3+ {[%clk 0:00:14.1]} 37. Rg3
{[%clk 0:00:50.4]} 37... Rh2 {[%clk 0:00:14.6]} 38. Bd4 {[%clk 0:00:46.2]} 38...
Nh5 {[%clk 0:00:14.7]} 39. Rg5 {[%clk 0:00:45.8]} 39... Rh4 {[%clk 0:00:14.2]}
40. e3 {[%clk 0:00:45.6]} 40... Rh2 {[%clk 0:00:14.7]} 41. Nd2 {[%clk
0:00:42.1]} 41... Rxd2 {[%clk 0:00:11.5]} 42. Rxh5 {[%clk 0:00:42.1]} 42... Rxa2
{[%clk 0:00:12.4]} 43. Rh7+ {[%clk 0:00:42.4]} 43... Ke6 {[%clk 0:00:13]} 44.
Rxb7 {[%clk 0:00:43.3]} 44... Rc2 {[%clk 0:00:10.7]} 45. Ke4 {[%clk 0:00:43.4]}
45... Rf2 {[%clk 0:00:11]} 46. f5+ {[%clk 0:00:42.3]} 46... Rxf5 {[%clk
0:00:10.5]} 47. Re7+ {[%clk 0:00:42.9]} 47... Kxe7 {[%clk 0:00:10.9]} 48. Kxf5
{[%clk 0:00:43.8]} 48... Kd7 {[%clk 0:00:11.5]} 49. Kf6 {[%clk 0:00:43.9]} 49...
Kc6 {[%clk 0:00:11.7]} 50. Ke6 {[%clk 0:00:44.1]} 50... Kc7 {[%clk 0:00:12.3]}
51. Kd5 {[%clk 0:00:43.3]} 51... Kd7 {[%clk 0:00:12.8]} 52. Bc3 {[%clk
0:00:44.2]} 52... Kc7 {[%clk 0:00:13.4]} 53. Bb4 {[%clk 0:00:45.1]} 53... Kd7
{[%clk 0:00:14.3]} 54. Bxd6 {[%clk 0:00:46]} 54... Kc8 {[%clk 0:00:15.2]} 55. e4
{[%clk 0:00:46.8]} 55... Kb7 {[%clk 0:00:16.1]} 56. e5 {[%clk 0:00:47.7]} 56...
Kc8 {[%clk 0:00:16.9]} 57. e6 {[%clk 0:00:48.5]} 57... Kd8 {[%clk 0:00:17.8]}
58. c5 {[%clk 0:00:48.6]} 58... Ke8 {[%clk 0:00:18.7]} 59. c6 {[%clk 0:00:49.2]}
59... Kd8 {[%clk 0:00:19.6]} 60. c7+ {[%clk 0:00:49]} 60... Kc8 {[%clk
0:00:20.5]} 61. e7 {[%clk 0:00:49.5]} 61... Kb7 {[%clk 0:00:21.4]} 62. c8=Q+
{[%clk 0:00:49.2]} 62... Ka7 {[%clk 0:00:22]} 63. Qb8+ {[%clk 0:00:46.9]} 1-0

[Event "*** Titled Tuesday Blitz"]
[Site "Chess.com"]
[Date "2020.05.05"]
[Round "8"]
[White "kakakz"]
[Black "northridgehawk"]
[Result "0-1"]
[WhiteElo "2416"]
[BlackElo "2284"]
[TimeControl "180+1"]
[EndTime "11:35:56 PDT"]
[Termination "northridgehawk won by resignation"]

1. d4 {[%clk 0:03:00]} 1... Nf6 {[%clk 0:02:58.9]} 2. c4 {[%clk 0:02:59.8]} 2...
g6 {[%clk 0:02:58.7]} 3. Nc3 {[%clk 0:02:59.9]} 3... d5 {[%clk 0:02:58.8]} 4.
cxd5 {[%clk 0:02:59.9]} 4... Nxd5 {[%clk 0:02:59.7]} 5. e4 {[%clk 0:03:00.8]}
5... Nxc3 {[%clk 0:02:59.4]} 6. bxc3 {[%clk 0:03:01.7]} 6... Bg7 {[%clk
0:02:59.6]} 7. Be3 {[%clk 0:03:02.1]} 7... c5 {[%clk 0:02:59.4]} 8. Rc1 {[%clk
0:03:02]} 8... O-O {[%clk 0:02:57.7]} 9. Nf3 {[%clk 0:02:56.7]} 9... Nc6 {[%clk
0:02:56.8]} 10. Be2 {[%clk 0:02:53.2]} 10... cxd4 {[%clk 0:02:56.3]} 11. cxd4
{[%clk 0:02:52.9]} 11... Qa5+ {[%clk 0:02:56.3]} 12. Qd2 {[%clk 0:02:52.6]}
12... Qxd2+ {[%clk 0:02:55.8]} 13. Kxd2 {[%clk 0:02:52.3]} 13... Rd8 {[%clk
0:02:54.3]} 14. Rc4 {[%clk 0:02:40.5]} 14... Bg4 {[%clk 0:02:49.2]} 15. d5
{[%clk 0:02:13]} 15... e6 {[%clk 0:02:47.3]} 16. Rb1 {[%clk 0:01:13.8]} 16...
exd5 {[%clk 0:02:44.6]} 17. exd5 {[%clk 0:01:14]} 17... Rxd5+ {[%clk 0:02:45.5]}
18. Ke1 {[%clk 0:01:14.6]} 18... Na5 {[%clk 0:02:37.9]} 19. Rxg4 {[%clk
0:01:13.4]} 19... Rad8 {[%clk 0:02:32.6]} 20. Ra4 {[%clk 0:01:04.7]} 20... b6
{[%clk 0:02:19.9]} 21. g3 {[%clk 0:00:49.5]} 21... Rc8 {[%clk 0:02:13.5]} 22.
Rc1 {[%clk 0:00:36.4]} 22... Rxc1+ {[%clk 0:02:08]} 23. Bxc1 {[%clk 0:00:37]}
23... Rc5 {[%clk 0:02:04.7]} 24. Kd1 {[%clk 0:00:36.1]} 24... Rd5+ {[%clk
0:02:03.2]} 25. Bd2 {[%clk 0:00:35.6]} 25... h6 {[%clk 0:01:53.6]} 26. h4 {[%clk
0:00:33.9]} 26... f5 {[%clk 0:01:43.8]} 27. Ke1 {[%clk 0:00:30.7]} 27... Kh7
{[%clk 0:01:43.1]} 28. Bxa5 {[%clk 0:00:25.8]} 28... bxa5 {[%clk 0:01:43.3]} 29.
Rc4 {[%clk 0:00:23.4]} 29... Rd7 {[%clk 0:01:32.7]} 30. Rc2 {[%clk 0:00:21.2]}
30... Bf6 {[%clk 0:01:28.6]} 31. Bb5 {[%clk 0:00:20.8]} 31... Re7+ {[%clk
0:01:28.1]} 32. Re2 {[%clk 0:00:20.9]} 32... Rb7 {[%clk 0:01:28.4]} 33. a4
{[%clk 0:00:20.6]} 33... Kg7 {[%clk 0:01:28.4]} 34. Re6 {[%clk 0:00:20.6]} 34...
g5 {[%clk 0:01:25.5]} 35. hxg5 {[%clk 0:00:19.8]} 35... hxg5 {[%clk 0:01:26.4]}
36. Ke2 {[%clk 0:00:19.7]} 36... Rc7 {[%clk 0:01:24.4]} 37. Ne5 {[%clk
0:00:17.7]} 37... Rc1 {[%clk 0:01:18.6]} 38. Nd7 {[%clk 0:00:16.4]} 38... Bc3
{[%clk 0:01:15.8]} 39. Re7+ {[%clk 0:00:14.9]} 39... Kg6 {[%clk 0:01:14.2]} 40.
Bd3 {[%clk 0:00:13.9]} 40... Re1+ {[%clk 0:01:13.8]} 41. Kf3 {[%clk 0:00:14.2]}
41... Rxe7 {[%clk 0:01:14.7]} 42. Nc5 {[%clk 0:00:14.6]} 42... g4+ {[%clk
0:01:13]} 43. Kg2 {[%clk 0:00:12.9]} 43... Bd4 {[%clk 0:01:12]} 44. Nb3 {[%clk
0:00:12.9]} 44... Bb6 {[%clk 0:01:11.9]} 45. Kf1 {[%clk 0:00:12.2]} 45... Kg5
{[%clk 0:01:10.8]} 46. Nd2 {[%clk 0:00:12]} 46... Rd7 {[%clk 0:01:08.3]} 47. Ke2
{[%clk 0:00:12]} 47... Bxf2 {[%clk 0:01:06.9]} 48. Bb5 {[%clk 0:00:12.1]} 48...
Rd6 {[%clk 0:01:05.5]} 49. Nf1 {[%clk 0:00:12.3]} 49... Bb6 {[%clk 0:01:05.1]}
50. Bd3 {[%clk 0:00:12.4]} 50... Re6+ {[%clk 0:01:03.4]} 51. Kd2 {[%clk
0:00:12]} 51... f4 {[%clk 0:01:02.9]} 52. gxf4+ {[%clk 0:00:12]} 52... Kxf4
{[%clk 0:01:03.8]} 53. Bc4 {[%clk 0:00:12.5]} 53... Rd6+ {[%clk 0:01:02.7]} 54.
Ke2 {[%clk 0:00:12.9]} 54... g3 {[%clk 0:01:02.9]} 55. Nxg3 {[%clk 0:00:13.2]}
55... Kxg3 {[%clk 0:01:02.9]} 0-1